Cogmind - Beta 9.1 @@@ ROGUE MODE // 2019.11.10 @ 16:25:56 Player: blerp Result: Destroyed by G-47 Trooper with Particle Gun Performance ------------- Evolutions (1) 500 Regions Visited (2) 400 Robots Destroyed (12) 60 Value Destroyed (274) 274 Prototype IDs (0) 0 Alien Tech Used (0) 0 Bonus (0) 0 TOTAL SCORE: 1234 Bonus ------- None Cogmind --------- Core Integrity 0/400 Matter 300/300 Energy 99/100 System Corruption 2% Temperature Cool (9) Location -9/Materials Parts ------- Power (1) Propulsion (3) Utility (3) Medium Storage Unit Terrain Scan Processor Weapon (2) Inventory (8) Wheel Wheel Small Storage Unit Seismic Analyzer Targeting Computer Peak State ------------ Power Ion Engine Propulsion Wheel Compact Wheel Compact Wheel Utility Medium Storage Unit Improved Terrain Scanner Terrain Scan Processor Weapon Medium Laser Medium Laser Inventory Wheel Wheel Small Storage Unit Seismic Analyzer Targeting Computer [Rating: 11] Favorites ----------- Power Ion Engine Engine Ion Engine Propulsion Compact Wheel Wheel Compact Wheel Utility Improved Terrain Scanner Device Improved Terrain Scanner Storage Medium Storage Unit Processor Terrain Scan Processor Weapon EM Pulse Gun Energy Gun EM Pulse Gun Build | -11 -10 -9 ------- Run | Scr Mat Mat Slots Evolved 2 | . . 2 Power . | . . . Propulsion 1 | . . 1 Utility 1 | . . 1 Weapon . | . . . Parts Attached 17 | 6 7 4 Power 2 | 1 1 . Engine 2 | 1 1 . Core . | . . . Reactor . | . . . Propulsion 3 | 2 . 1 Treads . | . . . Leg . | . . . Wheel 3 | 2 . 1 Hover . | . . . Flight . | . . . Utility 6 | 1 4 1 Device 2 | . 2 . Storage 2 | 1 1 . Processor 2 | . 1 1 Hackware . | . . . Protection . | . . . Artifact . | . . . Weapon 6 | 2 2 2 Energy Gun 6 | 2 2 2 Energy Cannon . | . . . Ballistic Gun . | . . . Ballistic Cannon . | . . . Launcher . | . . . Special Weapon . | . . . Impact Weapon . | . . . Slashing Weapon . | . . . Piercing Weapon . | . . . Special Melee Weapon . | . . . Unidentified Prototypes . | . . . Parts Lost 11 | . 2 9 Power 1 | . . 1 Propulsion 3 | . . 3 Utility 1 | . . 1 Weapon 6 | . 2 4 Highest Loss Streak 9 | . 2 9 Average Slot Usage (%) 87 | . 97 55 Engine 12 | . 14 6 Wheel 24 | . 28 12 Device 9 | . 10 4 Storage 13 | . 14 11 Processor 3 | . 1 11 Energy Gun 23 | . 27 9 Naked Turns . | . . . Heaviest Build 18 | 12 18 18 Greatest Support 42 | 32 32 42 Greatest Overweight (x) 4 | . . 4 Average Overweight (x) . | . . 1 Largest Inventory Capacity 8 | 6 8 8 Average Capacity 6 | 4 6 8 Most Carried 8 | 4 8 6 Average Carried 5 | 3 6 5 Final Capacity 8 | 6 8 8 Final Carried 7 | 4 7 5 Class Distribution -------------------- 90% | Mutant 9% | Scavenger-Mutant Dominant Class ---------------- Mutant | -10/Materials Mutant | -9/Materials Resources | -11 -10 -9 ----------- Run | Scr Mat Mat Matter Collected 330 | 200 130 . Remotely . | . . . Salvage Created 365 | . 232 133 Parts 29 | . 21 8 Haulers Intercepted 1 | . 1 . Recyclers Shooed . | . . . Parts Field Recycled . | . . . Retrieved Matter . | . . . Parts Self-Destructed . | . . . Prevented . | . . . Kills | -11 -10 -9 ------- Run | Scr Mat Mat Combat Hostiles Destroyed 9 | . 6 3 Melee 1 | . . 1 Guns 6 | . 4 2 AOE 1 | . 1 . Classes Destroyed 5 | . 5 . Builder 1 | . 1 . Tunneler 1 | . 1 . Hauler 1 | . 1 . Swarmer 3 | . 3 . Grunt 6 | . 3 3 Best Kill Streak 4 | . 4 1 Combat Bots Only 3 | . 3 1 Max Kills in Single Turn 3 | . 3 1 Gunslinging . | . . . Exploded 1 | . 1 . Melee 1 | . . 1 Uniques/NPCs Destroyed . | . . . Combat | -11 -10 -9 -------- Run | Scr Mat Mat Damage Taken 1191 | . 291 900 Core 501 | . 94 407 Absorbed by Shields . | . . . Core Remaining (%) 81 | 100 62 . Volleys Fired 37 | . 26 11 Largest 2 | . 2 2 Hottest 100 | . 100 100 Shots Fired 66 | . 51 15 Gun 66 | . 51 15 Cannon . | . . . Launcher . | . . . Special . | . . . Kinetic . | . . . Thermal 38 | . 28 10 Explosive . | . . . Electromagnetic 28 | . 23 5 Robot Hit Streak 12 | . 7 12 Robot Miss Streak 4 | . 4 2 Penetration Max . | . . . Secondary Targets 1 | . . 1 Max Gunslinging Chain 1 | . . 1 Shots Hit Robots 45 | . 32 13 Core Hits 24 | . 13 11 Critical Hits . | . . . Critical Kills . | . . . Critical Parts Destroyed . | . . . Melee Attacks . | . . . Impact . | . . . Slashing . | . . . Piercing . | . . . Sneak Attacks . | . . . Combat Hostiles . | . . . Follow-up Attacks . | . . . Damage Inflicted 737 | . 552 185 Guns 543 | . 371 172 Cannons . | . . . Explosions 181 | . 181 . Melee . | . . . Ramming 13 | . . 13 Kinetic . | . . . Thermal 462 | . 361 101 Explosive . | . . . Electromagnetic 262 | . 191 71 Impact . | . . . Slashing . | . . . Piercing . | . . . Highest Corruption 2 | . . 2 Average Corruption 2 | . . 2 Corruption Purged . | . . . Effects 1 | . . 1 Message Errors 1 | . . 1 Overload Shots . | . . . Overflow Damage . | . . . Projectiles . | . . . Explosions . | . . . Melee . | . . . Knockbacks . | . . . Impact . | . . . Kinetic . | . . . Secondary . | . . . Self-Inflicted Damage 40 | . 34 6 Shots 1 | . 1 . Rammed 11 | . . 11 Targets Rammed 11 | . . 11 Kicked . | . . . Crushed . | . . . Highest Temperature 135 | . 135 117 Average Temperature 44 | . 46 41 Received Heat Transfer 546 | . 99 447 Siege Activations . | . . . Robots Corrupted . | . . . Combat Hostiles . | . . . Parts Fried . | . . . Impact Corruptions . | . . . Robots Melted 1 | . 1 . Combat Hostiles 1 | . 1 . Parts Melted 2 | . 2 . Heat Transferred 1018 | . 722 296 Parts Sabotaged . | . . . Parts Stolen . | . . . Parts Stripped . | . . . Power Chain Reactions 2 | . 2 . Missiles Intercepted . | . . . Alert | -11 -10 -9 ------- Run | Scr Mat Mat Peak Influence 243 | . 243 129 Average Influence 127 | . 155 96 Maximum Alert Level 1 | . 1 . Low Security (%) 74 | . . . Level 1 25 | . . . Level 2 . | . . . Level 3 . | . . . Level 4 . | . . . Level 5 . | . . . High Security . | . . . Max Security . | . . . Squads Dispatched 3 | . 2 1 Investigation 2 | . 1 1 Extermination . | . . . Reinforcement 1 | . 1 . Assault . | . . . Garrison . | . . . Intercept . | . . . Construction Impeded . | . . . Haulers Reinforced . | . . . Stealth | -11 -10 -9 --------- Run | Scr Mat Mat Distress Signals 2 | . . 2 Communications Jammed . | . . . Distress Signals . | . . . Times Spotted 24 | . 17 7 Peak Tracking Total 5 | . 3 5 Tactical Retreats 3 | . 3 . Traps | -11 -10 -9 ------- Run | Scr Mat Mat Traps Triggered . | . . . Indirectly . | . . . Trap Hack Attempts . | . . . Triggered . | . . . Disarmed . | . . . Reprogrammed . | . . . Reused . | . . . Traps Extracted . | . . . Installed . | . . . Triggered . | . . . Machines | -11 -10 -9 ---------- Run | Scr Mat Mat Machines Disabled . | . . . Max in Single Turn . | . . . Machines Sabotaged . | . . . Garrisons Compromised . | . . . Overloaded Fab Kills . | . . . Fab Network Shutdowns . | . . . Hacking | -11 -10 -9 --------- Run | Scr Mat Mat Machines Accessed 3 | . 2 1 Terminals 2 | . 1 1 Fabricators . | . . . Repair Stations . | . . . Recycling Units 1 | . 1 . Scanalyzers . | . . . Garrison Access . | . . . Total Hacks 11 | . 4 7 Successful 5 | . 3 2 Failed 6 | . 1 5 Catastrophic . | . . . Database Lockouts . | . . . Manual 6 | . 3 3 Terminals 9 | . 2 7 Fabricators . | . . . Repair Stations . | . . . Recycling Units 2 | . 2 . Scanalyzers . | . . . Garrison Access . | . . . Terminal Hacks 1 | . . 1 Branch Access Points 1 | . . 1 Fabricator Hacks . | . . . Repair Station Hacks . | . . . Recycling Unit Hacks 1 | . 1 . Report Inventory 1 | . 1 . Scanalyzer . | . . . Garrison Access Hacks . | . . . Unauthorized Hacks 9 | . 5 4 Terminals 2 | . 1 1 Botnet 1 | . . 1 Operators 1 | . 1 . Fabricators . | . . . Repair Stations . | . . . Recycling Units 1 | . 1 . Tunnel 1 | . 1 . Scanalyzers . | . . . Garrison Access . | . . . Data Cores Recovered . | . . . Used . | . . . Hacking Detections 2 | . 1 1 Full Trace Events 1 | . . 1 Feedback Events . | . . . Feedback Blocked . | . . . Robot Schematics Acquired . | . . . Robots Built . | . . . Matter . | . . . Time . | . . . Total Robot Build Rating . | . . . Part Schematics Acquired . | . . . Parts Built . | . . . Matter . | . . . Time . | . . . Total Part Build Rating . | . . . Parts Repaired . | . . . Time . | . . . Parts Recycled . | . . . Recycled Matter . | . . . Retrieved Matter . | . . . Retrieved Components . | . . . Parts Scanalyzed . | . . . Part Schematics Acquired . | . . . Parts Damaged . | . . . Bothacking | -11 -10 -9 ------------ Run | Scr Mat Mat Used RIF Installer . | . . . Robots Hacked . | . . . Non-combat . | . . . Combat . | . . . Robot Hacks Applied . | . . . Relay Couplers Released . | . . . Robots Rewired . | . . . Allies Hacked . | . . . Hacks Repelled . | . . . Allies | -11 -10 -9 -------- Run | Scr Mat Mat Total Allies . | . . . Largest Group . | . . . Highest-Rated Group . | . . . Highest-Rated Ally . | . . . Total Orders . | . . . Ally Attacks . | . . . Total Damage . | . . . Kills . | . . . Allies Corrupted . | . . . Allies Melted . | . . . Intel | -11 -10 -9 ------- Run | Scr Mat Mat Robot Analysis Total . | . . . Derelict Logs Recovered . | . . . Drone Launches . | . . . Drone Recoveries . | . . . Exploration | -11 -10 -9 ------------- Run | Scr Mat Mat Turns Passed 576 | 58 397 121 Spaces Moved 384 | 45 282 57 Core 23 | 1 . 22 Treads . | . . . Legs . | . . . Wheels 361 | 44 282 35 Hover . | . . . Flight . | . . . Fastest Speed 50 | 50 100 93 Average Speed 103 | 98 100 127 Slowest Speed 250 | 100 100 250 Overloaded Moves . | . . . Propulsion Burnouts . | . . . Robots Hopped . | . . . Cave-ins Triggered . | . . . Exploration Rate (%) 20 | 3 50 9 Regions Visited 2 Branch Regions . Pre-discovered Areas 1 | . 1 . Known Exits Taken . | . . . Unknown Exits Taken 2 | 1 1 . Scrap Searched . | . . . Spaces Dug . | . . . Terrain Destroyed 7 | . 7 . Melee . | . . . Projectile . | . . . AOE 7 | . 7 . Actions | -11 -10 -9 --------- Run | Scr Mat Mat Total 488 | 56 347 85 Wait 18 | . 16 2 Move 382 | 44 281 57 Hop . | . . . Pick Up 16 | 6 10 . Fast Attach 9 | 4 3 2 Attach 7 | 2 3 2 Detach 1 | . 1 . Swap 1 | . 1 . Drop 6 | . 6 . Fire 37 | . 26 11 Melee . | . . . Ram 11 | . . 11 Kick . | . . . Crush . | . . . Escape Stasis . | . . . Rewire . | . . . Trap . | . . . Miscellaneous . | . . . Route ------- -11/Scrapyard -10/Materials (discovered 2 exits: *Mat / [*Min]) -9/Materials (discovered 3 exits: Min / Sto x2) History --------- Turn | Location | Event 15 | -11/Scrapyard | Discovered new exit (range 16) 59 | -11/Scrapyard | Entered Materials 315 | -10/Materials | Build established: Mutant 327 | -10/Materials | Discovered new exit (range 16) 378 | -10/Materials | Discovered new exit (range 16) 456 | -10/Materials | Entered another Materials area 456 | -9/Materials | Evolved 2 slots: Propulsion x1, Utility x1 471 | -9/Materials | Identified exit to Mines 471 | -9/Materials | Identified exit to Storage 535 | -9/Materials | Core integrity fell below 50% 560 | -9/Materials | Core integrity fell below 20% 571 | -9/Materials | Lost 9 parts (1p3n1u4w) 577 | -9/Materials | Destroyed by G-47 Trooper with Particle Gun Last Messages --------------- 00507_ Imp. Terrain Scanner destroyed. 00508_ Com. Wheel destroyed. 00524_ Acquired Hvy. EM Pulse Gun. 00524_ Ion Engine destroyed. 00525_ G-47 Trooper destroyed. 00528_ R-06 Scavenger collects Particle Gun. 00531_ Hvy. EM Pulse Gun destroyed. 00533_ R-06 Scavenger collects Lgt. Nuclear Core. 00535_ Acquired Hvy. EM Pulse Gun. 00540_ Hvy. EM Pulse Gun destroyed. 00556_ Slammed into G-34 Mercenary. 00560_ Slammed into G-47 Trooper. 00562_ Slammed into G-34 Mercenary. 00562_ G-34 Mercenary destroyed. 00565_ Slammed into G-47 Trooper. 00568_ Destabilizing: System corrupted (+2). 00569_ Slammed into G-47 Trooper. 00571_ Destabilizing: System interference. 00571_ Terrain Scan Processor temporarily disabled. 00572_ GOXEC/ <1JOU<6PVTAI| Map ----- +----------------------------------------------------+ | ?????????????????????????????????? | | ?????????????????????????????????? | | ?????????????????????????????????? | | ?????????????????????????????????? | | ?????????????????????????????????? | | ?????????????????????????????????? | | ?????????????????????????????????? | | ?????????????????????????????????? | | ?????????????????????????????????? | | ?????????????????????????????????? | | ?????????????????????????????????? | | ?????????????????????????????????? | | ?????????????????????????????????? | | ?????????????????????????????????? | | ?????????????????????????????????? | | ?????????????????????????????????? | | ?????????????????????????????????? | | ?????????????????????????????????? | | ?????????????????????????????????? | | ?????????????????????????????????? | | ?????????????????????????????????? | | ?????????????????????????????????? | | ?????????????????????? ??????????? | | ???????????????? ????????????????? | | ??????????????# ###+########???? | | ??????????????# =[%%@%g%#???? | | ???????????##?# %*#####g#???? | | ??????????????# #####/####? | | ?????????? #??# # %% #? | | ??????????????# # ** #? | | ??????????? # ** #? | | ?????#?? ? # * #? | | ???????? ? / % # | | ?????#?###?######### # """ ## | | ??????#?#??????????# # """ = #? | | ?????#??##????#?##?# # """ #? | | ??????????????????## + #? | | ?????#?#?#??##??#?## ##########? | | ????????###?######## #?? ??? ?? | | ??????#??#?##^ #? ??? ? | | ????????##??# ^ # ?? ? | | ??????#?#??## ^ %"" + "?"?? | | ???#??#?#???# T" #"S ""??? | | ????#???##?## "" #""" ""??? | | ????#????##?# # "" ??? | | ????##?#?##?# # ???? ?? ? | | ????##?#????# ##?T???#?#? | | ??????##???## ##?#???#??? | | ?????#??##### ##?#?#???? | | ????#??????## !! #??#?????? | +----------------------------------------------------+ Best States ------------- Heat Dissipation 28 Energy Generation 10 Energy Capacity 250 Matter Stores 300 Matter Capacity 300 Sight Range 16 Terrain Scan Range 16 Terrain Scan Density 85 Evasion (%) 41 Item Schematics ----------------- None Robot Schematics ------------------ None Fabricated ------------ Nothing Alien Tech Used ----------------- None Achievements -------------- None Challenges ------------ None Game ------ Seed SensorRefineryMace Manual? 0 Play Time 00:18:07 Cumulative 32.3 hours Start 2019.11.10 @ 16:03:39 End 2019.11.10 @ 16:25:56 Sessions 1 Manual Loads 0 Difficulty Rogue Special Mode None Game No. 27 Rogue 27 Adventurer 0 Explorer 0 Win Type - Total 0 Types 0/0/0/0/0/0/0 Lore% 12 Gallery% 26 Achievement% 24 Wizard Run 0 Options --------- ASCII 0 Keyboard 1 Movement Arrows Keybinds 0 Fullscreen 1 Font 16/Terminus Map View 76x50 Tactical HUD 1 Map Filters NONE Filters NONE Steam 1 RUN: 6a892485-4bac-4150-9dac-6e2fb00812d9